[Event "Israel Open Championship 2023"]
[Site "Acre"]
[Date "2024.01.29"]
[Round "9.16"]
[White "Liubarov, Mark"]
[Black "Ribstein, Orel"]
[Result "1-0"]
[ECO "B22"]
[WhiteElo "2305"]
[BlackElo "2043"]
[Annotator "TA"]
[PlyCount "125"]
[EventDate "2024.01.18"]
[EventType "swiss"]
[EventCountry "ISR"]
[SourceTitle "playchess.com"]
[Source "ChessBase"]
[SourceQuality "1"]
[TimeControl "5400+30"]

{[%evp 31,125,34,40,0,10,-14,-12,-19,0,-9,0,0,0,0,-26,-6,0,0,0,0,0,0,0,-46,470,471,465,194,445,14,215,210,215,200,201,154,164,127,147,148,222,211,214,205,209,206,215,190,200,177,169,143,236,208,332,333,359,254,458,421,415,414,380,380,588,635,588,593,837,831,808,814,725,774,1172,1171,1670,1605,1633,1534,1592,1346,1585,1443,2301,1877,29981,29981,29981,29958,29984,29985,29984,29985,29985,29986]} 1. e4 {[%emt 0:00:03]} c5 {[%emt 0:00:07]} 2. c3 {[%emt 0:00:04]} d5 {[%emt 0:00:33]} 3. exd5 {[%emt 0:00:05]} Qxd5 {[%emt 0:00:10]} 4. d4 {[%emt 0:00:07]} Nc6 {[%emt 0:01:20]} 5. Nf3 {[%emt 0:00:17]} Bf5 {[%emt 0:00:07]} 6. Be3 {[%emt 0:00:20]} cxd4 {[%emt 0:00:28] B22: Sicilian: 2 c3.} 7. cxd4 {[%emt 0:01:32]} Bxb1 {[%emt 0:00:12]} 8. Rxb1 {[%emt 0:06:01] The main line 8.Rxb1 scores better than 8.Qxb1.} e6 {[%emt 0:00:09]} 9. a3 {[%emt 0:08:57]} Nf6 {[%emt 0:00:09]} 10. Rc1 {[%emt 0:02:49]} Bd6 {[%emt 0:00:24]} 11. Bc4 {[%emt 0:02:10]} Qh5 {[%emt 0:01:03]} 12. Be2 {[%emt 0:09:40]} Qd5 $146 {[%emt 0:01:29]} ({Predecessor:} 12... Qa5+ 13. Bd2 Qb6 14. O-O O-O 15. Bc3 Rfd8 16. Qa4 Nd5 17. Rfd1 Qc7 18. b4 a6 {½-½ Del Prato,U (1882)-Benedetti,M (1918) Arco Christmas op 11th 2021 (3)}) 13. O-O {[%emt 0:07:36]} O-O {[%emt 0:06:39]} 14. Bg5 {[%emt 0:05:54]} Ng4 {[%emt 0:13:01]} 15. Bc4 {[%emt 0:04:07]} Qf5 {[%emt 0:00:44]} 16. Bd3 {[%emt 0:04:42]} Qd5 {[%emt 0:02:53]} 17. Be3 {[%emt 0:07:57]} Qh5 {[%emt 0:02:50]} 18. h3 {[%emt 0:00:58]} Nxe3 {[%emt 0:00:01]} 19. fxe3 {[%emt 0:00:07]} Rad8 {[%emt 0:01:20]} 20. Nd2 {[%emt 0:02:55]} (20. Qd2 $5) 20... Qg5 {[%emt 0:10:33]} 21. Qe2 {[%emt 0:01:28]} Qg3 {[%emt 0:15:28]} 22. Rf3 {[%emt 0:09:06]} Qh2+ {[%emt 0:00:50]} 23. Kf2 {[%emt 0:00:20]} Be7 {[%emt 0:09:19]} 24. Rg3 {[%emt 0:01:54]} Bd6 $1 {[%emt 0:11:41]} (24... Bh4 $2 25. Nf1 Bxg3+ 26. Nxg3 $18) 25. Nf1 {[%emt 0:01:09]} Qh1 $1 {[%emt 0:02:46]} (25... Bxg3+ $2 26. Nxg3 e5 27. Rh1 $18) 26. Re1 {[%emt 0:07:24]} f5 {[%emt 0:01:18]} (26... Bxg3+ $2 27. Nxg3 Qh2 28. Rh1 $18) 27. Qh5 {[%emt 0:01:15]} (27. Rf3 $11) 27... g6 $2 {[%emt 0:02:34][%mdl 8192]} (27... Bxg3+ $2 28. Nxg3 Qh2 29. Rh1 $18) (27... Rf6 $1 $15 {stays ahead.}) 28. Rxg6+ $1 $18 {[%emt 0:05:15]} hxg6 {[%emt 0:00:01]} 29. Qxg6+ {[%emt 0:00:02]} Kh8 {[%emt 0:00:00]} 30. Qh6+ {[%emt 0:00:14]} (30. Ng3 $142 Bxg3+ (30... Qh2 $2 31. Qh6+ Kg8 32. Qxe6+ Kh7 33. Bxf5+ Rxf5+ 34. Nxf5 $18) 31. Qxg3 Qxe1+ 32. Kxe1) 30... Kg8 $18 {[%emt 0:00:04] [#]} 31. Bc4 $1 {[%emt 0:00:21]} Kf7 {[%emt 0:01:47]} 32. Bxe6+ {[%emt 0:00:54]} (32. Nd2 $2 Bg3+ 33. Kf3 Qxe1 $19 (33... Bxe1 $2 34. Bxe6+ Ke7 35. Ba2 $19)) 32... Ke7 {[%emt 0:16:30]} 33. Bb3 {[%emt 0:05:25]} Kd7 {[%emt 0:00:00] [#]} 34. Qg7+ $1 {[%emt 0:00:11]} Kc8 {[%emt 0:00:00]} 35. Nd2 {[%emt 0:00:56]} Qh2 {[%emt 0:00:00]} (35... Be5 $16 {might work better.} 36. Qg6 (36. dxe5 $2 Rxd2+ 37. Re2 Rfd8 $19) (36. Be6+ Kb8 $16) 36... Rf6) 36. Nf3 $18 {[%emt 0:00:37]} Qg3+ {[%emt 0:00:00]} 37. Qxg3 {[%emt 0:00:01]} Bxg3+ {[%emt 0:00:00]} 38. Kxg3 {[%emt 0:00:02]} f4+ {[%emt 0:00:00]} 39. exf4 {[%emt 0:00:36]} Nxd4 {[%emt 0:00:00]} 40. Nxd4 {[%emt 0:00:53]} Rxd4 {[%emt 0:00:00]} 41. Be6+ {[%emt 0:00:29]} Kc7 {[%emt 0:00:27]} (41... Kd8 $16) 42. f5 $18 {[%emt 0:00:09]} a5 {[%emt 0:01:45]} (42... Rf6 $142 43. Kf3 Kc6) 43. Kf3 $18 {[%emt 0:02:37]} Kd6 {[%emt 0:00:00]} 44. Re4 {[%emt 0:00:00]} Rd3+ $2 {[%emt 0:00:00]} (44... Rxe4 45. Kxe4 Re8) 45. Kf4 {[%emt 0:00:00]} Rd2 {[%emt 0:00:00]} 46. g4 {[%emt 0:00:00]} Rxb2 {[%emt 0:00:00]} 47. Rd4+ {[%emt 0:00:00]} Kc6 {[%emt 0:00:00]} (47... Kc5 {was called for.} 48. Rd5+ Kc6) 48. g5 $18 {[%emt 0:00:00]} Re2 {[%emt 0:00:00]} 49. Re4 {[%emt 0:00:00]} Rf2+ {[%emt 0:01:20]} 50. Ke5 {[%emt 0:00:00]} b5 {[%emt 0:01:50]} 51. g6 {[%emt 0:00:00]} Rg2 {[%emt 0:00:27]} 52. h4 {[%emt 0:00:00]} Kc5 {[%emt 0:01:42]} 53. h5 {[%emt 0:00:00]} b4 {[%emt 0:00:26]} 54. axb4+ {[%emt 0:00:00]} axb4 {[%emt 0:00:01]} 55. h6 {[%emt 0:00:00]} Re8 {[%emt 0:00:25]} 56. Re3 {[%emt 0:00:00]} Rc2 {[%emt 0:01:10]} 57. Kf6 {[%emt 0:00:00]} Rc3 {[%emt 0:00:36]} 58. Re5+ {[%emt 0:00:00]} Kd6 {[%emt 0:01:37]} 59. g7 {[%emt 0:00:00]} Rh3 {[%emt 0:00:21]} 60. Rd5+ {[%emt 0:00:00]} ({Worse is} 60. g8=B Rxh6+ 61. Kg5 Kxe5 $11 (61... Rxg8+ 62. Kxh6 Kxe5 63. Bxg8 $11)) 60... Kc6 {[%emt 0:00:01]} 61. Bd7+ {[%emt 0:00:00]} Kxd5 {[%emt 0:00:14]} 62. Bxe8 {[%emt 0:00:00]} Rxh6+ {[%emt 0:00:42]} 63. Bg6 {[%emt 0:00:00]} 1-0

[Event "Israel Open Championship 2023"]
[Site "Acre"]
[Date "2024.01.29"]
[Round "9.17"]
[White "Gov, Guy"]
[Black "Slobodiansky, Steven"]
[Result "1/2-1/2"]
[ECO "C07"]
[WhiteElo "2127"]
[BlackElo "2273"]
[Annotator "TA"]
[PlyCount "86"]
[EventDate "2024.01.18"]
[EventType "swiss"]
[EventCountry "ISR"]
[SourceTitle "playchess.com"]
[Source "ChessBase"]
[SourceQuality "1"]
[TimeControl "5400+30"]

{[%evp 25,86,11,27,9,16,28,25,11,16,0,18,0,-7,0,0,0,0,0,0,-144,-130,-140,-13,-12,-10,-12,-9,-10,-9,-10,-16,-14,-8,-25,-13,-16,-17,-29,-14,-12,-16,-9,-31,-52,-24,-24,-24,-24,-24,-25,-25,-25,-25,-25,0,0,0,0,0,0,0,0,0]} 1. e4 {[%emt 0:00:01]} e6 {[%emt 0:00:11]} 2. d4 {[%emt 0:00:10]} d5 {[%emt 0:00:05]} 3. Nd2 {[%emt 1:31:49]} c5 {[%emt 0:00:40]} 4. exd5 {[%emt 0:00:00]} Qxd5 {[%emt 0:00:10]} 5. Ngf3 {[%emt 0:00:00]} cxd4 {[%emt 0:00:16]} 6. Bc4 {[%emt 0:00:00]} Qd6 {[%emt 0:00:09]} 7. O-O {[%emt 0:00:00]} Nf6 {[%emt 0:00:23]} 8. Nb3 {[%emt 0:00:00]} Nc6 {[%emt 0:00:20]} 9. Nbxd4 {[%emt 0:00:00]} Nxd4 {[%emt 0:00:09]} 10. Nxd4 {[%emt 0:00:00]} Be7 {[%emt 0:00:40]} 11. c3 {[%emt 0:00:00]} O-O {[%emt 0:00:34]} 12. Qf3 {[%emt 0:00:00]} Qc7 {[%emt 0:01:30]} 13. Bb3 {[%emt 0:00:00]} Bd7 {[%emt 0:02:50]} 14. Bg5 {[%emt 0:00:00]} h6 {[%emt 0:04:23]} 15. Bh4 {[%emt 0:00:00]} a5 {[%emt 0:00:59]} 16. a4 {[%emt 0:00:00] White has an edge.} Qb6 {[%emt 0:01:22]} 17. Rfe1 {[%emt 0:00:00]} Bc6 {[%emt 0:08:02]} 18. Qh3 {[%emt 0:00:00]} (18. Qe2 {simplifies} Bd5 19. Bxf6 Bxf6 20. Bxd5 Bxd4 21. Bxe6 Bxf2+ 22. Qxf2 Qxf2+ 23. Kxf2 fxe6+ 24. Ke3) 18... Rad8 {[%emt 0:07:44]} 19. Rxe6 {[%emt 0:08:00]} fxe6 {[%emt 0:22:03]} 20. Qxe6+ {[%emt 0:00:00]} Kh8 {[%emt 0:00:06]} 21. Qxe7 {[%emt 0:00:00]} Rfe8 {[%emt 0:00:16]} 22. Qf7 {[%emt 0:00:00]} (22. Qa3 $1 $11 {was the only way to keep the balance.}) 22... Rd7 $17 {[%emt 0:01:13]} 23. Qc4 {[%emt 0:00:00] [#]} Rxd4 {[%emt 0:10:43]} 24. Qxd4 $11 {[%emt 0:00:00]} (24. cxd4 $2 Bd5 25. Qc3 Ne4 $19 (25... Bxb3 $2 26. Bxf6 gxf6 27. Qh3 $19)) 24... Qxb3 {[%emt 0:00:43]} 25. Bxf6 {[%emt 0:00:00]} gxf6 {[%emt 0:19:15]} 26. Qxf6+ {[%emt 0:00:00]} Kh7 {[%emt 0:00:07][%cal Ob3d5] aiming for ...Qd5!} 27. Qf5+ {[%emt 0:00:00]} Kg7 {[%emt 0:00:10][%cal Ob3a4] [#] ...Qxa4! is the strong threat.} 28. Qg4+ {[%emt 0:00:00]} Kh8 {[%emt 0:01:31]} (28... Kf6 {is interesting.} 29. Qh4+ Ke6 30. Re1+ Kd7) 29. Qd4+ $1 {[%emt 0:00:00]} Kh7 {[%emt 0:00:07][%cal Ob3c2] Hoping for ...Qc2!} 30. Qd3+ {[%emt 0:00:00]} Kg7 {[%emt 0:01:08]} 31. Qd4+ $1 {[%emt 0:00:00]} Kf7 {[%emt 0:00:37]} 32. Qf4+ $1 {[%emt 0:00:00]} Ke6 {[%emt 0:01:33] White should prevent ...Kd7.} 33. Re1+ {[%emt 0:00:00]} Kd7 {[%emt 0:00:12][%cal Re8e1]} 34. Qf5+ {[%emt 0:00:00]} Kc7 {[%emt 0:00:54][%cal Re8e1]} (34... Re6 {looks sharper.} 35. Qf7+ Kd6 36. Qf4+ Ke7) 35. Qf4+ $1 {[%emt 0:00:00]} (35. Qxa5+ $2 b6 36. Qa7+ Bb7 $19) 35... Kb6 {[%emt 0:02:31][%cal Re8e1]} 36. Qd4+ {[%emt 0:00:00]} Ka6 {[%emt 0:00:52][%cal Re8e1]} 37. Qd3+ {[%emt 0:00:00]} (37. Rxe8 {simplifies} Bxe8 38. Qd3+ Ka7 39. Qe3+) 37... Ka7 {[%emt 0:00:47]} 38. Rxe8 {[%emt 0:00:00]} Bxe8 {[%emt 0:00:03]} 39. Qe3+ {[%emt 0:00:00]} Ka6 {[%emt 0:02:21] ( -> ...Qd1+)} 40. Qd3+ {[%emt 0:00:00] The position is equal.} ({Of course not} 40. Qe2+ b5 41. axb5+ (41. c4 $2 Qxc4 42. Qd2 Qxa4 $19) 41... Qxb5 (41... Bxb5 42. Qf3 $15) 42. Qe6+ Kb7 $17) 40... Kb6 {[%emt 0:00:27]} 41. Qd8+ {[%emt 0:00:00]} Ka6 {[%emt 0:00:50]} 42. Qa8+ {[%emt 0:00:00]} (42. Qxe8 $2 {is a self mate.} Qd1+) 42... Kb6 {[%emt 0:00:13][%cal Rb3d1]} 43. Qd8+ {[%emt 0:00:00]} Ka6 {[%emt 0:00:24] Weighted Error Value: White=0.11 (very precise) /Black=0.10 (very precise) .  Mistake:       	White=1     	Black=1      Inaccurate:     	---       	Black=1      OK:         	White=11    	Black=15     Best:        	White=4     	Black=2      Strong:       	White=4     	---} 1/2-1/2

[Event "Israel Open Championship 2023"]
[Site "Acre"]
[Date "2024.01.29"]
[Round "9.18"]
[White "Vagman, Roy"]
[Black "Kochavi, Dana"]
[Result "1/2-1/2"]
[ECO "C50"]
[WhiteElo "2302"]
[BlackElo "2121"]
[Annotator "TA"]
[PlyCount "33"]
[EventDate "2024.01.18"]
[EventType "swiss"]
[EventCountry "ISR"]
[SourceTitle "playchess.com"]
[Source "ChessBase"]
[SourceQuality "1"]
[TimeControl "5400+30"]

{[%evp 16,33,0,0,0,0,0,-2,17,14,10,-15,-13,-22,-21,-17,-19,-37,4,-7]} 1. e4 {[%emt 0:00:45]} e5 {[%emt 0:00:08]} 2. Nf3 {[%emt 0:00:13]} Nc6 {[%emt 0:00:08]} 3. Bc4 {[%emt 0:00:56]} Bc5 {[%emt 0:00:05]} 4. d3 {[%emt 0:02:28]} Nf6 {[%emt 0:00:06]} 5. Nc3 {[%emt 0:00:43]} h6 {[%emt 0:01:08]} 6. h3 {[%emt 0:01:34]} a6 {[%emt 0:00:07]} 7. Be3 {[%emt 0:04:32]} d6 {[%emt 0:04:31]} 8. a3 {[%emt 0:04:59]} O-O {[%emt 0:02:35]} 9. O-O {[%emt 0:09:57]} Re8 {[%emt 0:04:12]} 10. Nd5 {[%emt 0:02:13]} Nxd5 {[%emt 0:03:24]} 11. Bxd5 {[%emt 0:00:56]} Ne7 {[%emt 0:03:41][%cal Bc6e7,Be7g6,Bg6f4][%mdl 32]} 12. Bb3 {[%emt 0:00:50] Strongly threatening Bxc5.} Ng6 {[%emt 0:01:00]} 13. d4 {[%emt 0:01:53]} exd4 {[%emt 0:08:45]} 14. Bxd4 {[%emt 0:02:26]} Bxd4 {[%emt 0:02:00]} 15. Qxd4 {[%emt 0:00:15]} Nf4 {[%emt 0:00:54]} 16. Rfe1 {[%emt 0:01:05] Dodges Ne2+} Be6 {[%emt 0:04:11]} 17. Bxe6 {[%emt 0:02:57] An uneventful encounter.   Weighted Error Value: White=0.09 (flawless) /Black=0.10 (very precise) .  Inaccurate:     	---       	Black=1      OK:         	White=2     	Black=2} 1/2-1/2

[Event "Israel Open Championship 2023"]
[Site "Acre"]
[Date "2024.01.29"]
[Round "9.19"]
[White "Katz, Kiril"]
[Black "Bykhovsky, Avigdor"]
[Result "1/2-1/2"]
[ECO "B40"]
[WhiteElo "2031"]
[BlackElo "2349"]
[Annotator "TA"]
[PlyCount "99"]
[EventDate "2024.01.18"]
[EventType "swiss"]
[EventCountry "ISR"]
[SourceTitle "playchess.com"]
[Source "ChessBase"]
[SourceQuality "1"]
[TimeControl "5400+30"]

{[%evp 10,99,-6,-3,46,0,1,7,12,0,17,0,32,2,8,-46,0,-82,-27,-102,-54,-62,-53,-100,-31,-35,-34,-85,-81,-69,-52,-66,-58,-56,-44,-127,-28,-55,-53,-143,-129,-142,-134,-199,-200,-189,-76,-87,-76,-65,-64,-96,-96,-158,-31,-127,-134,-145,-147,-133,-124,-140,-173,-177,-165,-315,-330,-321,-314,-521,-530,-564,-547,-569,-487,-329,0,0,0,0,0,-218,0,0,0,0,0,0,0,0,0,0]} 1. e4 {[%emt 0:00:02]} e6 {[%emt 0:00:17]} 2. b3 {[%emt 0:00:03]} c5 {[%emt 0:03:16]} 3. Nf3 {[%emt 0:00:15]} Nc6 {[%emt 0:01:05]} 4. Bb2 {[%emt 0:05:01]} a6 {[%emt 0:10:11]} 5. d4 {[%emt 0:02:37]} cxd4 {[%emt 0:15:29]} 6. Nxd4 {[%emt 0:00:43]} Nge7 {[%emt 0:02:47]} (6... Qf6 $11 {is superior.}) 7. Qf3 {[%emt 0:05:21]} Nxd4 {[%emt 0:04:40]} 8. Bxd4 {[%emt 0:03:44]} Nc6 {[%emt 0:00:29]} 9. Bb2 {[%emt 0:00:05]} Bb4+ {[%emt 0:02:41]} (9... d5 $5) 10. c3 {[%emt 0:01:20]} Be7 {[%emt 0:01:26]} 11. Nd2 {[%emt 0:00:17]} O-O {[%emt 0:53:39]} 12. O-O-O {[%emt 0:04:01]} (12. Be2 $11) 12... b5 {[%emt 0:00:00]} (12... f5 $15 {was preferrable.}) 13. g3 {[%emt 0:09:28]} (13. Qe3 $11) 13... Bb7 {[%emt 0:00:00]} ({Better is} 13... Qb6 $17) 14. Qe2 {[%emt 0:04:23]} (14. Qe3 $11 {remains equal.}) 14... Qc7 {[%emt 0:00:00]} (14... b4 $17 15. cxb4 Nxb4) 15. Kb1 $15 {[%emt 0:02:01]} Bf6 {[%emt 0:00:00]} 16. f4 {[%emt 0:22:58]} (16. Rc1 $15) 16... d6 {[%emt 0:00:00]} (16... b4 $1 $17 {[%cal Rb4c3]} 17. Qe3 Rfc8) 17. Bg2 {[%emt 0:12:51]} Rfd8 {[%emt 0:00:00]} 18. g4 {[%emt 0:01:34]} (18. Nf1 $15) 18... b4 $17 {[%emt 0:00:00]} 19. Rc1 {[%emt 0:00:01]} bxc3 {[%emt 0:00:00]} 20. Bxc3 {[%emt 0:00:01]} Bxc3 {[%emt 0:00:00]} 21. Rxc3 {[%emt 0:00:01]} d5 {[%emt 0:00:00]} 22. e5 {[%emt 0:01:10]} (22. Qf2 $15) 22... Rac8 {[%emt 0:00:00]} (22... Qb6 $17 {Hoping for ...a5.} 23. Rhc1 a5) 23. Rhc1 $11 {[%emt 0:03:07]} Qa5 {[%emt 0:00:00]} 24. Nf1 {[%emt 0:04:19]} (24. Nf3 $15) 24... Qb4 $17 {[%emt 0:00:00]} 25. Qd2 {[%emt 0:03:34]} a5 $36 {[%emt 0:00:00][%mdl 2048] Black is on the roll.} 26. Rh3 {[%emt 0:05:20]} (26. R3c2 $17) 26... Ba6 $19 {[%emt 0:00:00]} 27. Rhc3 {[%emt 0:05:09]} Nd4 {[%emt 0:00:33]} (27... Qb6 $19 28. Ka1 h6) 28. Rxc8 $17 {[%emt 0:00:18]} Rxc8 {[%emt 0:00:10]} 29. Rxc8+ {[%emt 0:00:04]} Bxc8 {[%emt 0:00:01]} 30. Qxb4 {[%emt 0:02:01]} axb4 {[%emt 0:00:01][%mdl 4096] Endgame. KBN-KBN} 31. Ng3 {[%emt 0:00:01]} (31. Nd2 $142) 31... Ba6 {[%emt 0:01:39]} (31... h6 $1 $17 {...Nc6 would now be deadly.} 32. Nh5 Ba6) 32. Kb2 {[%emt 0:00:27]} ({White should play} 32. g5 $1 $15) 32... h6 $1 {[%emt 0:00:50]} 33. a3 {[%emt 0:04:43]} bxa3+ {[%emt 0:00:29]} 34. Kxa3 {[%emt 0:00:00]} g5 {[%emt 0:00:55]} 35. fxg5 {[%emt 0:00:00]} hxg5 {[%emt 0:00:02]} 36. Ka4 {[%emt 0:00:00]} Nc6 {[%emt 0:03:09][%cal Og8f8]} 37. Bf1 {[%emt 0:00:00]} (37. b4 $142 Nxe5 38. b5) 37... Bxf1 $19 {[%emt 0:01:41]} 38. Nxf1 {[%emt 0:00:00]} Nxe5 {[%emt 0:00:02] KN-KN} 39. b4 $2 {[%emt 0:00:09]} (39. h3) 39... Nxg4 {[%emt 0:00:46]} 40. b5 {[%emt 0:00:22]} Ne5 {[%emt 0:00:13]} 41. b6 {[%emt 0:00:38]} Nd7 {[%emt 0:00:49]} 42. Kb5 {[%emt 0:00:06] [#]} Nxb6 $2 {[%emt 0:01:14]} 43. Kxb6 {[%emt 0:00:01] KN-KP} Kg7 {[%emt 0:00:17]} 44. Kc5 {[%emt 0:00:30]} Kf6 {[%emt 0:03:39] aiming for ...Ke5.} 45. Kd6 {[%emt 0:00:30]} (45. Ne3 $11) 45... g4 $2 {[%emt 0:00:00]} (45... Kf5 $19 {And now ...g4 would win.} 46. Ng3+ Kf4) 46. Ne3 $11 {[%emt 0:00:00] The position is equal.} Kg5 {[%emt 0:00:00]} 47. Ke5 {[%emt 0:00:00]} Kh4 {[%emt 0:00:00]} 48. Kf4 {[%emt 0:00:00]} f5 {[%emt 0:00:00]} 49. Ke5 {[%emt 0:00:00]} Kh3 {[%emt 0:00:00]} 50. Kxe6 {[%emt 0:00:00] White happily takes the draw.   Weighted Error Value: White=0.45/Black=0.39.  Loses game:     	White=1     	---        Missed win:     	---       	Black=2      Mistake:       	White=12    	Black=7      Inaccurate:     	White=3     	Black=1      OK:         	White=13    	Black=16     Best:        	White=2     	Black=3      Strong:       	---       	Black=1} 1/2-1/2

[Event "Israel Open Championship 2023"]
[Site "Acre"]
[Date "2024.01.29"]
[Round "9.20"]
[White "Streltsov, Alexey"]
[Black "Azoulay, Yehonatan"]
[Result "1-0"]
[ECO "B27"]
[WhiteElo "2341"]
[BlackElo "2008"]
[Annotator "RC"]
[PlyCount "141"]
[EventDate "2024.01.18"]
[EventType "swiss"]
[EventCountry "ISR"]
[SourceTitle "playchess.com"]
[Source "ChessBase"]
[SourceQuality "1"]
[TimeControl "5400+30"]

1. e4 {[%emt 0:00:04]} c5 {[%emt 0:00:16]} 2. Nf3 {[%emt 0:00:06]} g6 {[%emt 0:00:04]} 3. d4 {[%emt 0:00:08]} cxd4 {[%emt 0:00:05]} 4. Qxd4 {[%emt 0:00:08]} Nf6 {[%emt 0:00:07]} 5. Qa4 {[%emt 0:00:09]} Nc6 {[%emt 0:01:27]} 6. Nc3 {[%emt 0:00:11]} d6 {[%emt 0:00:22]} 7. e5 {[%emt 0:00:08]} dxe5 {[%emt 0:00:07]} 8. Nxe5 {[%emt 0:00:03]} Bd7 {[%emt 0:00:07]} 9. Nxd7 {[%emt 0:00:09]} Nxd7 {[%emt 0:00:05]} 10. Be3 {[%emt 0:03:30]} Bg7 {[%emt 0:00:27]} 11. Be2 {[%emt 0:01:54]} O-O {[%emt 0:04:42]} 12. Rd1 {[%emt 0:01:53]} Qc8 {[%emt 0:00:36]} 13. Nd5 {[%emt 0:00:54]} Re8 {[%emt 0:01:14]} 14. c3 {[%emt 0:02:04]} e6 {[%emt 0:02:25]} 15. Nf4 {[%emt 0:00:55]} Nb6 {[%emt 0:05:19]} 16. Qb5 {[%emt 0:05:10]} Ne5 {[%emt 0:06:10]} 17. O-O {[%emt 0:04:35]} Nec4 {[%emt 0:03:42]} 18. Bc1 {[%emt 0:00:52]} a6 {[%emt 0:02:34]} 19. Qg5 {[%emt 0:04:34]} Qc7 {[%emt 0:04:00]} 20. h4 {[%emt 0:00:20]} Rad8 {[%emt 0:07:15]} 21. Qg3 {[%emt 0:21:22]} e5 {[%emt 0:20:29]} 22. Nh3 {[%emt 0:01:38]} a5 {[%emt 0:10:46]} 23. h5 {[%emt 0:02:02]} Nd6 {[%emt 0:04:28]} 24. Bd3 {[%emt 0:05:26]} e4 {[%emt 0:02:10]} 25. Bc2 {[%emt 0:00:02]} Qe7 {[%emt 0:04:07]} 26. hxg6 {[%emt 0:05:51]} hxg6 {[%emt 0:02:08]} 27. Bg5 {[%emt 0:00:17]} Bf6 {[%emt 0:03:53]} 28. Qh4 {[%emt 0:00:26]} Nd7 {[%emt 0:01:37]} 29. Qf4 {[%emt 0:19:33]} Bxg5 {[%emt 0:03:20]} 30. Nxg5 {[%emt 0:00:02]} Nf6 {[%emt 0:01:11]} 31. Bb3 {[%emt 0:13:28]} Kg7 {[%emt 0:01:10]} 32. Rfe1 {[%emt 0:00:28]} Rh8 {[%emt 0:04:53]} 33. Rd4 {[%emt 0:04:15]} Rh5 {[%emt 0:00:44]} 34. f3 {[%emt 0:01:13]} Nf5 {[%emt 0:03:31]} 35. Rxd8 {[%emt 0:00:56]} Qxd8 {[%emt 0:00:03]} 36. Nxe4 {[%emt 0:02:24]} Nxe4 {[%emt 0:00:43]} 37. fxe4 {[%emt 0:00:05]} Qb6+ {[%emt 0:00:10]} 38. Kf1 {[%emt 0:00:01]} Rh1+ {[%emt 0:01:37]} 39. Ke2 {[%emt 0:00:01]} Rh4 {[%emt 0:00:09]} 40. g4 {[%emt 0:02:01]} Nh6 {[%emt 0:01:32]} 41. Qe5+ {[%emt 0:00:15]} Kh7 {[%emt 0:00:04]} 42. g5 {[%emt 0:01:18]} Ng4 {[%emt 0:00:00]} 43. Qf4 {[%emt 0:00:00]} Rh2+ {[%emt 0:00:00]} 44. Kd1 {[%emt 0:00:00]} Nf2+ {[%emt 0:00:00]} 45. Kc2 {[%emt 0:00:00]} Ng4+ {[%emt 0:00:00]} 46. Kb1 {[%emt 0:00:00]} Qf2 {[%emt 0:00:00]} 47. Qxf7+ {[%emt 0:00:00]} Qxf7 {[%emt 0:00:00]} 48. Bxf7 {[%emt 0:00:00]} Ne5 {[%emt 0:00:00]} 49. Bb3 {[%emt 0:00:00]} Rg2 {[%emt 0:00:00]} 50. Rd1 {[%emt 0:00:00]} Rxg5 {[%emt 0:00:00]} 51. Rd5 {[%emt 0:00:00]} b6 {[%emt 0:00:00]} 52. a4 {[%emt 0:01:05]} Rg1+ {[%emt 0:00:00]} 53. Kc2 {[%emt 0:02:02]} Rg2+ {[%emt 0:00:00]} 54. Kc1 {[%emt 0:00:13]} Rg1+ {[%emt 0:00:00]} 55. Bd1 {[%emt 0:00:13]} Nc4 {[%emt 0:00:00]} 56. b4 {[%emt 0:00:51]} g5 {[%emt 0:00:00]} 57. Rd4 {[%emt 0:01:27]} Ne5 {[%emt 0:00:00]} 58. bxa5 {[%emt 0:00:15]} bxa5 {[%emt 0:00:00]} 59. Rd5 {[%emt 0:00:02]} Nc4 {[%emt 0:00:00]} 60. e5 {[%emt 0:02:17]} Re1 {[%emt 0:00:00]} 61. Rc5 {[%emt 0:00:34]} Nxe5 {[%emt 0:00:00]} 62. Kd2 {[%emt 0:00:03]} Nf3+ {[%emt 0:00:00]} 63. Bxf3 {[%emt 0:00:03]} Ra1 {[%emt 0:00:00]} 64. Rxa5 {[%emt 0:00:07]} Kg6 {[%emt 0:00:00]} 65. Bg4 {[%emt 0:00:17]} Rg1 {[%emt 0:00:00]} 66. Ra6+ {[%emt 0:00:02]} Kg7 {[%emt 0:00:00]} 67. Bf5 {[%emt 0:00:08]} Kf7 {[%emt 0:00:00]} 68. Rg6 {[%emt 0:01:08]} Rg2+ {[%emt 0:00:00]} 69. Kd3 {[%emt 0:00:19]} Rf2 {[%emt 0:00:00]} 70. Rxg5 {[%emt 0:00:20]} Kf6 {[%emt 0:00:00]} 71. Rh5 {[%emt 0:00:08]} 1-0